[Event "*** Titled Tuesday Blitz"]
[Site "Chess.com"]
[Date "2021.02.09"]
[Round "5"]
[White "politeplayer"]
[Black "kai_nov"]
[Result "0-1"]
[WhiteElo "2179"]
[BlackElo "2376"]
[TimeControl "180+1"]
[EndTime "10:56:38 PST"]
[Termination "kai_nov won by resignation"]

1. e4 {[%clk 0:03:00.9]} 1... c5 {[%clk 0:02:59.7]} 2. Nf3 {[%clk 0:03:00.3]}
2... Nc6 {[%clk 0:02:59.4]} 3. d4 {[%clk 0:02:59.7]} 3... cxd4 {[%clk
0:02:56.9]} 4. Nxd4 {[%clk 0:02:59.8]} 4... Nf6 {[%clk 0:02:57.2]} 5. Nc3 {[%clk
0:02:59.1]} 5... e5 {[%clk 0:02:57.1]} 6. Ndb5 {[%clk 0:02:58.1]} 6... d6 {[%clk
0:02:56.5]} 7. Bg5 {[%clk 0:02:54.7]} 7... a6 {[%clk 0:02:55.3]} 8. Na3 {[%clk
0:02:53.6]} 8... b5 {[%clk 0:02:53.7]} 9. Bxf6 {[%clk 0:02:53.5]} 9... gxf6
{[%clk 0:02:53.2]} 10. Nd5 {[%clk 0:02:53.9]} 10... f5 {[%clk 0:02:52.7]} 11.
Bxb5 {[%clk 0:02:49.1]} 11... axb5 {[%clk 0:02:51.7]} 12. Nxb5 {[%clk
0:02:48.8]} 12... Ra4 {[%clk 0:02:51]} 13. Nbc7+ {[%clk 0:02:44]} 13... Kd7
{[%clk 0:02:49.6]} 14. b4 {[%clk 0:02:35.1]} 14... Rxb4 {[%clk 0:02:45.2]} 15.
O-O {[%clk 0:02:27.4]} 15... Rg8 {[%clk 0:02:41.2]} 16. Qh5 {[%clk 0:02:21.6]}
16... Qg5 {[%clk 0:02:37.5]} 17. Qxf7+ {[%clk 0:01:26]} 17... Be7 {[%clk
0:02:36.2]} 18. g3 {[%clk 0:01:00.9]} 18... Qg6 {[%clk 0:02:32.4]} 19. Qxg6
{[%clk 0:00:50.9]} 19... hxg6 {[%clk 0:02:29.7]} 20. Nxb4 {[%clk 0:00:49.6]}
20... Nxb4 {[%clk 0:02:26.8]} 21. Nd5 {[%clk 0:00:49]} 21... Nxd5 {[%clk
0:02:18.8]} 22. exd5 {[%clk 0:00:49.1]} 22... Ba6 {[%clk 0:02:15.8]} 23. Rfb1
{[%clk 0:00:46.4]} 23... Rc8 {[%clk 0:02:14.4]} 24. Rb6 {[%clk 0:00:45.5]} 24...
Bc4 {[%clk 0:02:11.9]} 25. a4 {[%clk 0:00:42.2]} 25... Bxd5 {[%clk 0:02:05.2]}
26. a5 {[%clk 0:00:42.5]} 26... Bd8 {[%clk 0:02:05]} 27. Rb5 {[%clk 0:00:39.1]}
27... Bc6 {[%clk 0:02:02.3]} 28. Rb4 {[%clk 0:00:38.3]} 28... Ra8 {[%clk
0:01:46.7]} 29. a6 {[%clk 0:00:38.1]} 29... Ra7 {[%clk 0:01:46.6]} 30. c4 {[%clk
0:00:31.2]} 30... g5 {[%clk 0:01:37.3]} 31. Rb8 {[%clk 0:00:24.7]} 31... g4
{[%clk 0:01:35.3]} 32. c5 {[%clk 0:00:16.9]} 32... Kc7 {[%clk 0:01:26.1]} 33.
Rb2 {[%clk 0:00:10.4]} 33... dxc5 {[%clk 0:01:23.9]} 34. Re2 {[%clk 0:00:10.4]}
34... Bf6 {[%clk 0:01:21.3]} 35. Ra3 {[%clk 0:00:08.4]} 35... Bb5 {[%clk
0:01:18.6]} 36. Rc2 {[%clk 0:00:07.7]} 36... Kc6 {[%clk 0:01:18]} 37. Rac3
{[%clk 0:00:07.4]} 37... c4 {[%clk 0:01:18.1]} 38. Rd2 {[%clk 0:00:06.8]} 38...
Rxa6 {[%clk 0:01:15.5]} 39. h4 {[%clk 0:00:07.3]} 39... gxh3 {[%clk 0:01:14.7]}
40. Kh2 {[%clk 0:00:07.4]} 40... e4 {[%clk 0:01:12.6]} 41. Rd1 {[%clk
0:00:06.2]} 41... Bxc3 {[%clk 0:01:11.6]} 0-1

[Event "*** Titled Tuesday Blitz"]
[Site "Chess.com"]
[Date "2021.02.09"]
[Round "5"]
[White "Grineva_Marianna"]
[Black "krasavetc"]
[Result "1-0"]
[WhiteElo "2212"]
[BlackElo "2341"]
[TimeControl "180+1"]
[EndTime "10:56:40 PST"]
[Termination "Grineva_Marianna won by resignation"]

1. e4 {[%clk 0:02:46]} 1... e6 {[%clk 0:03:00.9]} 2. d4 {[%clk 0:02:43.8]} 2...
d5 {[%clk 0:02:58.8]} 3. Nd2 {[%clk 0:02:43.8]} 3... Nf6 {[%clk 0:02:57.4]} 4.
e5 {[%clk 0:02:39.6]} 4... Nfd7 {[%clk 0:02:50.3]} 5. Bd3 {[%clk 0:02:39.2]}
5... c5 {[%clk 0:02:51.2]} 6. c3 {[%clk 0:02:38.3]} 6... Nc6 {[%clk 0:02:47.4]}
7. Ne2 {[%clk 0:02:37.8]} 7... a6 {[%clk 0:02:47.6]} 8. O-O {[%clk 0:02:36.6]}
8... b5 {[%clk 0:02:47.4]} 9. Nf3 {[%clk 0:02:33]} 9... h6 {[%clk 0:02:43.3]}
10. a3 {[%clk 0:02:22.3]} 10... Bb7 {[%clk 0:02:38.9]} 11. Bf4 {[%clk
0:02:07.5]} 11... Be7 {[%clk 0:02:34.8]} 12. h3 {[%clk 0:02:03.9]} 12... Qb6
{[%clk 0:02:24.9]} 13. Bb1 {[%clk 0:01:57.2]} 13... O-O-O {[%clk 0:02:21.3]} 14.
b4 {[%clk 0:01:40.2]} 14... c4 {[%clk 0:02:17.3]} 15. a4 {[%clk 0:01:40.1]}
15... Rhg8 {[%clk 0:02:05.4]} 16. axb5 {[%clk 0:01:33]} 16... axb5 {[%clk
0:02:02.4]} 17. Bh7 {[%clk 0:01:31.5]} 17... Rh8 {[%clk 0:01:59.1]} 18. Bc2
{[%clk 0:01:31.5]} 18... g5 {[%clk 0:01:57.9]} 19. Be3 {[%clk 0:01:22.6]} 19...
Rhg8 {[%clk 0:01:51.1]} 20. Ng3 {[%clk 0:01:16.8]} 20... f6 {[%clk 0:01:41.9]}
21. exf6 {[%clk 0:01:11.4]} 21... Bxf6 {[%clk 0:01:34.1]} 22. Re1 {[%clk
0:01:08.3]} 22... Rg7 {[%clk 0:01:20.5]} 23. Ne5 {[%clk 0:01:03.9]} 23... Qc7
{[%clk 0:01:16.3]} 24. Nh5 {[%clk 0:01:00.8]} 24... Bxe5 {[%clk 0:01:11.7]} 25.
dxe5 {[%clk 0:00:57.9]} 25... Rf7 {[%clk 0:01:10.6]} 26. Bg6 {[%clk 0:00:52.7]}
26... Rff8 {[%clk 0:01:09.8]} 27. Qg4 {[%clk 0:00:37.2]} 27... Ncxe5 {[%clk
0:00:51.5]} 28. Qxe6 {[%clk 0:00:36.9]} 28... Rde8 {[%clk 0:00:51.9]} 29. Bxe8
{[%clk 0:00:36.2]} 29... Bc6 {[%clk 0:00:47.6]} 30. Bd4 {[%clk 0:00:33.3]} 30...
Nd3 {[%clk 0:00:38.3]} 31. Ra7 {[%clk 0:00:29.2]} 31... Qd8 {[%clk 0:00:24.3]}
32. Qxc6+ {[%clk 0:00:28.9]} 1-0

[Event "*** Titled Tuesday Blitz"]
[Site "Chess.com"]
[Date "2021.02.09"]
[Round "5"]
[White "skoularikii"]
[Black "Vincent_Vega95"]
[Result "0-1"]
[WhiteElo "2504"]
[BlackElo "2718"]
[TimeControl "180+1"]
[EndTime "10:56:42 PST"]
[Termination "Vincent_Vega95 won by checkmate"]

1. e4 {[%clk 0:03:00.9]} 1... c5 {[%clk 0:02:59.8]} 2. Nf3 {[%clk 0:03:00.6]}
2... d6 {[%clk 0:03:00.1]} 3. Bb5+ {[%clk 0:03:00]} 3... Bd7 {[%clk 0:02:59.3]}
4. c4 {[%clk 0:03:00.6]} 4... Nc6 {[%clk 0:02:58.5]} 5. Nc3 {[%clk 0:03:00.8]}
5... g6 {[%clk 0:02:58.4]} 6. d4 {[%clk 0:03:00.8]} 6... cxd4 {[%clk 0:02:59.3]}
7. Nxd4 {[%clk 0:03:01.3]} 7... Bg7 {[%clk 0:02:59.8]} 8. Be3 {[%clk 0:03:01.6]}
8... Nf6 {[%clk 0:02:59]} 9. O-O {[%clk 0:03:01.4]} 9... O-O {[%clk 0:02:59.2]}
10. Bxc6 {[%clk 0:03:01.5]} 10... bxc6 {[%clk 0:02:59]} 11. Nb3 {[%clk
0:02:59.8]} 11... a5 {[%clk 0:02:29.5]} 12. c5 {[%clk 0:02:53.2]} 12... a4
{[%clk 0:02:28.2]} 13. Nc1 {[%clk 0:02:42.2]} 13... Ng4 {[%clk 0:02:19.8]} 14.
Nxa4 {[%clk 0:02:18.9]} 14... Nxe3 {[%clk 0:02:09.9]} 15. fxe3 {[%clk
0:02:18.1]} 15... Be6 {[%clk 0:02:00.1]} 16. cxd6 {[%clk 0:02:01.8]} 16... exd6
{[%clk 0:01:56.6]} 17. Qc2 {[%clk 0:01:38.7]} 17... Qg5 {[%clk 0:01:29.9]} 18.
Re1 {[%clk 0:01:25.8]} 18... Qh4 {[%clk 0:01:07.5]} 19. Ne2 {[%clk 0:01:17.6]}
19... Be5 {[%clk 0:01:01.9]} 20. g3 {[%clk 0:01:17.4]} 20... Qd8 {[%clk
0:00:50.5]} 21. Nd4 {[%clk 0:01:10.2]} 21... Bd7 {[%clk 0:00:50.3]} 22. Rac1
{[%clk 0:00:52.2]} 22... c5 {[%clk 0:00:46]} 23. Nxc5 {[%clk 0:00:40.2]} 23...
dxc5 {[%clk 0:00:46.9]} 24. Qxc5 {[%clk 0:00:40.4]} 24... Ra5 {[%clk 0:00:47.2]}
25. Qb4 {[%clk 0:00:39.6]} 25... Rxa2 {[%clk 0:00:42.1]} 26. Red1 {[%clk
0:00:36.8]} 26... Qg5 {[%clk 0:00:36.2]} 27. Qb3 {[%clk 0:00:32.8]} 27... Bxd4
{[%clk 0:00:33.4]} 28. exd4 {[%clk 0:00:29.6]} 28... Raa8 {[%clk 0:00:25.9]} 29.
Rf1 {[%clk 0:00:29.6]} 29... Rab8 {[%clk 0:00:24.5]} 30. Qa3 {[%clk 0:00:27.2]}
30... Bh3 {[%clk 0:00:24.4]} 31. Rfe1 {[%clk 0:00:25.2]} 31... Qd2 {[%clk
0:00:22.9]} 32. Qc3 {[%clk 0:00:23.4]} 32... Qg2# {[%clk 0:00:22.4]} 0-1

[Event "*** Titled Tuesday Blitz"]
[Site "Chess.com"]
[Date "2021.02.09"]
[Round "5"]
[White "MuhittinBuker"]
[Black "bennyficial"]
[Result "0-1"]
[WhiteElo "2050"]
[BlackElo "2194"]
[TimeControl "180+1"]
[EndTime "10:56:44 PST"]
[Termination "bennyficial won by resignation"]

1. c4 {[%clk 0:03:00.9]} 1... e5 {[%clk 0:02:59.5]} 2. Nc3 {[%clk 0:03:00]} 2...
Nf6 {[%clk 0:02:59.8]} 3. d3 {[%clk 0:03:00.3]} 3... d5 {[%clk 0:02:59.6]} 4.
cxd5 {[%clk 0:02:59.7]} 4... Nxd5 {[%clk 0:03:00.2]} 5. Nf3 {[%clk 0:03:00.1]}
5... Nc6 {[%clk 0:02:58.4]} 6. g3 {[%clk 0:03:00.4]} 6... Be7 {[%clk 0:02:57.9]}
7. Bg2 {[%clk 0:03:00.7]} 7... Nb6 {[%clk 0:02:55.5]} 8. O-O {[%clk 0:03:01]}
8... O-O {[%clk 0:02:55.7]} 9. a3 {[%clk 0:03:01.4]} 9... a5 {[%clk 0:02:53.6]}
10. Na4 {[%clk 0:03:01.6]} 10... Be6 {[%clk 0:02:53.2]} 11. Nxb6 {[%clk
0:03:00.3]} 11... cxb6 {[%clk 0:02:52.9]} 12. Be3 {[%clk 0:02:59.5]} 12... Rc8
{[%clk 0:02:39.8]} 13. Rc1 {[%clk 0:02:59.4]} 13... f6 {[%clk 0:02:33.3]} 14.
Qa4 {[%clk 0:02:58.7]} 14... Bd5 {[%clk 0:02:16.5]} 15. Qb5 {[%clk 0:02:47.4]}
15... Na7 {[%clk 0:01:29.9]} 16. Qxb6 {[%clk 0:02:21.2]} 16... Qxb6 {[%clk
0:01:30]} 17. Bxb6 {[%clk 0:02:20.5]} 17... Nc6 {[%clk 0:01:30.4]} 18. Bh3
{[%clk 0:02:11.9]} 18... Ra8 {[%clk 0:01:26.7]} 19. e4 {[%clk 0:01:59.1]} 19...
Bb3 {[%clk 0:01:19.9]} 20. Rc3 {[%clk 0:01:57.5]} 20... a4 {[%clk 0:01:18.4]}
21. Rfc1 {[%clk 0:01:57.3]} 21... Ra6 {[%clk 0:01:08.7]} 22. Bc5 {[%clk
0:01:57.4]} 22... Bxc5 {[%clk 0:01:05.2]} 23. Rxc5 {[%clk 0:01:57.2]} 23... Rd8
{[%clk 0:01:04.8]} 24. Bf1 {[%clk 0:01:55.1]} 24... Rb6 {[%clk 0:01:01.4]} 25.
Nh4 {[%clk 0:01:49.3]} 25... g6 {[%clk 0:00:58.4]} 26. f4 {[%clk 0:01:46.2]}
26... exf4 {[%clk 0:00:48.3]} 27. gxf4 {[%clk 0:01:45.7]} 27... Rd7 {[%clk
0:00:46.5]} 28. Nf3 {[%clk 0:01:44.8]} 28... Be6 {[%clk 0:00:44.3]} 29. Kf2
{[%clk 0:01:43.9]} 29... Rxb2+ {[%clk 0:00:44]} 30. R1c2 {[%clk 0:01:42.6]}
30... Rxc2+ {[%clk 0:00:43.8]} 31. Rxc2 {[%clk 0:01:42.2]} 31... Bg4 {[%clk
0:00:43.8]} 32. Ne1 {[%clk 0:01:31.1]} 32... Nd4 {[%clk 0:00:40.5]} 33. Rc4
{[%clk 0:01:28.6]} 33... b5 {[%clk 0:00:40.2]} 34. Rc5 {[%clk 0:01:26.1]} 34...
Be6 {[%clk 0:00:33.6]} 35. Ke3 {[%clk 0:01:23.9]} 35... b4 {[%clk 0:00:30.2]}
36. axb4 {[%clk 0:01:23.4]} 36... a3 {[%clk 0:00:30.4]} 37. Ra5 {[%clk
0:01:23.5]} 37... a2 {[%clk 0:00:30.4]} 38. Ra8+ {[%clk 0:01:01.6]} 38... Kg7
{[%clk 0:00:30.3]} 39. Be2 {[%clk 0:01:01.2]} 39... Nc6 {[%clk 0:00:30]} 40. b5
{[%clk 0:01:00.2]} 40... Nb4 {[%clk 0:00:30.2]} 41. Bd1 {[%clk 0:00:57.9]} 41...
f5 {[%clk 0:00:25.7]} 42. d4 {[%clk 0:00:54.3]} 42... fxe4 {[%clk 0:00:24.8]}
43. Kxe4 {[%clk 0:00:51]} 43... Bd5+ {[%clk 0:00:25]} 44. Ke5 {[%clk 0:00:50.6]}
44... Bxa8 {[%clk 0:00:25.7]} 45. Bb3 {[%clk 0:00:49.9]} 45... a1=Q {[%clk
0:00:25.6]} 0-1

[Event "*** Titled Tuesday Blitz"]
[Site "Chess.com"]
[Date "2021.02.09"]
[Round "5"]
[White "BahadirOzen"]
[Black "PSvidler"]
[Result "0-1"]
[WhiteElo "2722"]
[BlackElo "2886"]
[TimeControl "180+1"]
[EndTime "10:56:50 PST"]
[Termination "PSvidler won by resignation"]

1. g3 {[%clk 0:03:00.9]} 1... d5 {[%clk 0:02:56.8]} 2. Bg2 {[%clk 0:03:01.2]}
2... e5 {[%clk 0:02:56.7]} 3. d3 {[%clk 0:03:01.3]} 3... Nf6 {[%clk 0:02:53]} 4.
Nf3 {[%clk 0:03:01.1]} 4... Bd6 {[%clk 0:02:52.1]} 5. O-O {[%clk 0:03:01.5]}
5... O-O {[%clk 0:02:51.9]} 6. Nc3 {[%clk 0:03:01.9]} 6... c6 {[%clk 0:02:50.9]}
7. e4 {[%clk 0:03:02.3]} 7... h6 {[%clk 0:02:51]} 8. h3 {[%clk 0:02:55]} 8...
Re8 {[%clk 0:02:50.8]} 9. Re1 {[%clk 0:02:52.4]} 9... a5 {[%clk 0:02:38.3]} 10.
Nh4 {[%clk 0:02:42.8]} 10... Be6 {[%clk 0:02:34.7]} 11. Qf3 {[%clk 0:02:42.4]}
11... Nbd7 {[%clk 0:02:31.2]} 12. Nf5 {[%clk 0:02:41.4]} 12... Bf8 {[%clk
0:02:31.1]} 13. a3 {[%clk 0:02:27.7]} 13... Qc7 {[%clk 0:02:28.2]} 14. g4 {[%clk
0:02:24.8]} 14... d4 {[%clk 0:02:02.2]} 15. Ne2 {[%clk 0:02:05.8]} 15... c5
{[%clk 0:02:02.1]} 16. c4 {[%clk 0:01:47.9]} 16... a4 {[%clk 0:01:47.7]} 17. h4
{[%clk 0:01:40.7]} 17... g6 {[%clk 0:01:40.2]} 18. Neg3 {[%clk 0:01:11.8]} 18...
b5 {[%clk 0:01:13.6]} 19. cxb5 {[%clk 0:01:09.6]} 19... Rab8 {[%clk 0:01:13.4]}
20. Bh3 {[%clk 0:01:07]} 20... gxf5 {[%clk 0:01:05.1]} 21. gxf5 {[%clk 0:01:06]}
21... Bb3 {[%clk 0:01:04.1]} 22. Kh1 {[%clk 0:01:04.1]} 22... Kh7 {[%clk
0:00:59.3]} 23. Rg1 {[%clk 0:01:04]} 23... Rxb5 {[%clk 0:00:54.9]} 24. Bg5
{[%clk 0:00:57.9]} 24... Bg7 {[%clk 0:00:51.3]} 25. Rg2 {[%clk 0:00:52.3]} 25...
Rg8 {[%clk 0:00:50.4]} 26. Rag1 {[%clk 0:00:52.8]} 26... Rbb8 {[%clk 0:00:49.8]}
27. Nh5 {[%clk 0:00:30.5]} 27... Nxh5 {[%clk 0:00:46.4]} 28. f6 {[%clk
0:00:28.7]} 28... Ndxf6 {[%clk 0:00:42.7]} 29. Bf5+ {[%clk 0:00:28.4]} 29... Kh8
{[%clk 0:00:42.6]} 30. Bg4 {[%clk 0:00:19]} 30... Nxg4 {[%clk 0:00:40.1]} 31.
Qxg4 {[%clk 0:00:19]} 31... Nf4 {[%clk 0:00:33.7]} 32. Bxf4 {[%clk 0:00:19.1]}
32... exf4 {[%clk 0:00:33.2]} 33. Qh5 {[%clk 0:00:20]} 33... Qd6 {[%clk
0:00:27.7]} 34. Rg6 {[%clk 0:00:18.3]} 34... fxg6 {[%clk 0:00:27.5]} 35. Rxg6
{[%clk 0:00:19.2]} 35... Bf7 {[%clk 0:00:27]} 0-1

[Event "*** Titled Tuesday Blitz"]
[Site "Chess.com"]
[Date "2021.02.09"]
[Round "5"]
[White "ChessQueen"]
[Black "beto-betun"]
[Result "1-0"]
[WhiteElo "2783"]
[BlackElo "2180"]
[TimeControl "180+1"]
[EndTime "10:56:50 PST"]
[Termination "ChessQueen won on time"]

1. Nf3 {[%clk 0:03:00.9]} 1... Nf6 {[%clk 0:02:49.9]} 2. g3 {[%clk 0:03:00.1]}
2... g6 {[%clk 0:02:50.2]} 3. Bg2 {[%clk 0:03:00.1]} 3... Bg7 {[%clk 0:02:50.4]}
4. d4 {[%clk 0:03:00.5]} 4... O-O {[%clk 0:02:50.6]} 5. O-O {[%clk 0:03:00.7]}
5... d6 {[%clk 0:02:50.8]} 6. c4 {[%clk 0:03:00.4]} 6... c6 {[%clk 0:02:49.3]}
7. Nc3 {[%clk 0:03:00.5]} 7... Bg4 {[%clk 0:02:48.6]} 8. Rb1 {[%clk 0:02:58.7]}
8... a5 {[%clk 0:02:44.8]} 9. a3 {[%clk 0:02:54.2]} 9... Nbd7 {[%clk 0:02:39.9]}
10. b4 {[%clk 0:02:53.6]} 10... axb4 {[%clk 0:02:39.2]} 11. axb4 {[%clk
0:02:54.5]} 11... Qc7 {[%clk 0:02:36.7]} 12. c5 {[%clk 0:02:47.9]} 12... Bf5
{[%clk 0:01:46.8]} 13. Rb3 {[%clk 0:02:38.7]} 13... d5 {[%clk 0:01:43.6]} 14.
Bf4 {[%clk 0:02:36.2]} 14... Qd8 {[%clk 0:01:42.8]} 15. b5 {[%clk 0:02:35.2]}
15... Ne4 {[%clk 0:01:38.2]} 16. bxc6 {[%clk 0:02:12.8]} 16... bxc6 {[%clk
0:01:33]} 17. Qc1 {[%clk 0:01:54.1]} 17... Nxc3 {[%clk 0:01:26.9]} 18. Qxc3
{[%clk 0:01:53.9]} 18... Ra2 {[%clk 0:01:26.1]} 19. Qe3 {[%clk 0:01:36.8]} 19...
e6 {[%clk 0:01:20.8]} 20. Rb7 {[%clk 0:01:28.4]} 20... Nf6 {[%clk 0:01:14.8]}
21. h3 {[%clk 0:01:25.3]} 21... Qa8 {[%clk 0:01:13.2]} 22. Rb3 {[%clk
0:01:22.8]} 22... h5 {[%clk 0:01:08.1]} 23. Bd6 {[%clk 0:01:20]} 23... Re8
{[%clk 0:01:06.3]} 24. Ne5 {[%clk 0:01:17.8]} 24... Be4 {[%clk 0:00:45.1]} 25.
f3 {[%clk 0:01:16.7]} 25... Bc2 {[%clk 0:00:43.5]} 26. Rb6 {[%clk 0:01:12.9]}
26... Ba4 {[%clk 0:00:41]} 27. g4 {[%clk 0:01:10.9]} 27... Bb5 {[%clk
0:00:37.9]} 28. Re1 {[%clk 0:01:09.1]} 28... hxg4 {[%clk 0:00:28.7]} 29. hxg4
{[%clk 0:01:09.1]} 29... Rc8 {[%clk 0:00:24.2]} 30. Kf2 {[%clk 0:00:56.6]} 30...
Ne8 {[%clk 0:00:21.6]} 31. Qf4 {[%clk 0:00:52.1]} 31... Qa7 {[%clk 0:00:16.3]}
32. Rb8 {[%clk 0:00:40.1]} 32... Rxb8 {[%clk 0:00:10]} 33. Bxb8 {[%clk 0:00:40]}
33... Qb7 {[%clk 0:00:07.2]} 34. Bd6 {[%clk 0:00:37.6]} 1-0

[Event "*** Titled Tuesday Blitz"]
[Site "Chess.com"]
[Date "2021.02.09"]
[Round "5"]
[White "DinaBelenkaya"]
[Black "AttilaTurzo"]
[Result "0-1"]
[WhiteElo "2366"]
[BlackElo "2529"]
[TimeControl "180+1"]
[EndTime "10:56:51 PST"]
[Termination "AttilaTurzo won by resignation"]

1. e4 {[%clk 0:03:00.6]} 1... c5 {[%clk 0:02:59.3]} 2. Nc3 {[%clk 0:02:59.8]}
2... Nc6 {[%clk 0:02:59.2]} 3. g3 {[%clk 0:02:58.7]} 3... g6 {[%clk 0:02:57.5]}
4. Bg2 {[%clk 0:02:58.9]} 4... Bg7 {[%clk 0:02:58.4]} 5. d3 {[%clk 0:02:58.6]}
5... d6 {[%clk 0:02:59.3]} 6. Nge2 {[%clk 0:02:56.6]} 6... Nf6 {[%clk
0:02:57.4]} 7. O-O {[%clk 0:02:47.8]} 7... O-O {[%clk 0:02:57.6]} 8. f4 {[%clk
0:02:46.6]} 8... Bg4 {[%clk 0:02:56.7]} 9. h3 {[%clk 0:02:45.4]} 9... Bxe2
{[%clk 0:02:56.6]} 10. Nxe2 {[%clk 0:02:44.7]} 10... Rb8 {[%clk 0:02:55.6]} 11.
Be3 {[%clk 0:02:42.2]} 11... Nd7 {[%clk 0:02:52.2]} 12. c3 {[%clk 0:02:42.3]}
12... a6 {[%clk 0:02:17.6]} 13. a4 {[%clk 0:02:38.6]} 13... e6 {[%clk
0:02:08.3]} 14. d4 {[%clk 0:02:36.8]} 14... cxd4 {[%clk 0:01:59]} 15. Nxd4
{[%clk 0:02:37.5]} 15... Qc7 {[%clk 0:01:51.9]} 16. Qd2 {[%clk 0:02:23.8]} 16...
Na5 {[%clk 0:01:50.9]} 17. Bf2 {[%clk 0:02:13]} 17... Bxd4 {[%clk 0:01:42.8]}
18. Bxd4 {[%clk 0:01:53.5]} 18... Nb3 {[%clk 0:01:42.4]} 19. Qe2 {[%clk
0:01:51.3]} 19... Nxa1 {[%clk 0:01:41.7]} 20. Rxa1 {[%clk 0:01:51.2]} 20... e5
{[%clk 0:01:42]} 21. Be3 {[%clk 0:01:46.3]} 21... exf4 {[%clk 0:01:42.2]} 22.
gxf4 {[%clk 0:01:42.6]} 22... f6 {[%clk 0:01:38]} 23. Bd4 {[%clk 0:01:37.6]}
23... Nc5 {[%clk 0:01:34.2]} 24. Qg4 {[%clk 0:01:27.4]} 24... f5 {[%clk
0:01:26.1]} 25. exf5 {[%clk 0:01:18.6]} 25... Rxf5 {[%clk 0:01:27]} 26. Re1
{[%clk 0:01:07.6]} 26... Rbf8 {[%clk 0:01:22.7]} 27. c4 {[%clk 0:01:06]} 27...
Nd3 {[%clk 0:01:03.5]} 28. Re6 {[%clk 0:00:19.1]} 28... Nxf4 {[%clk 0:00:54.9]}
29. Bd5 {[%clk 0:00:17.2]} 29... Rxd5 {[%clk 0:00:44.5]} 30. Rxg6+ {[%clk
0:00:17.2]} 30... Nxg6 {[%clk 0:00:42.2]} 31. cxd5 {[%clk 0:00:12.6]} 31... Qc1+
{[%clk 0:00:39]} 32. Kg2 {[%clk 0:00:12.5]} 32... Qf1+ {[%clk 0:00:33.4]} 33.
Kh2 {[%clk 0:00:12.8]} 33... Qf4+ {[%clk 0:00:30.7]} 34. Kg2 {[%clk 0:00:10.6]}
34... Qxg4+ {[%clk 0:00:29.6]} 35. hxg4 {[%clk 0:00:11.5]} 35... Nf4+ {[%clk
0:00:30]} 0-1

[Event "*** Titled Tuesday Blitz"]
[Site "Chess.com"]
[Date "2021.02.09"]
[Round "5"]
[White "chessdjw"]
[Black "Firouzja2003"]
[Result "0-1"]
[WhiteElo "2631"]
[BlackElo "3024"]
[TimeControl "180+1"]
[EndTime "10:56:52 PST"]
[Termination "Firouzja2003 won by checkmate"]

1. d4 {[%clk 0:03:00.9]} 1... Nf6 {[%clk 0:02:58.7]} 2. c4 {[%clk 0:03:00.8]}
2... d6 {[%clk 0:02:58.2]} 3. Nc3 {[%clk 0:02:59.9]} 3... Nbd7 {[%clk
0:02:59.1]} 4. e4 {[%clk 0:03:00.2]} 4... e5 {[%clk 0:03:00]} 5. Nf3 {[%clk
0:03:00.2]} 5... Be7 {[%clk 0:03:00.7]} 6. Be2 {[%clk 0:03:00.1]} 6... O-O
{[%clk 0:03:01.3]} 7. O-O {[%clk 0:03:00.6]} 7... c6 {[%clk 0:03:02]} 8. Qc2
{[%clk 0:02:56.6]} 8... a6 {[%clk 0:03:02]} 9. Rd1 {[%clk 0:02:53.3]} 9... Qc7
{[%clk 0:03:02.2]} 10. Be3 {[%clk 0:02:52.7]} 10... Re8 {[%clk 0:03:01.7]} 11.
Rac1 {[%clk 0:02:52.6]} 11... Nf8 {[%clk 0:03:01.2]} 12. Bf1 {[%clk 0:02:30.2]}
12... Bg4 {[%clk 0:02:57.9]} 13. Be2 {[%clk 0:02:28.7]} 13... Ng6 {[%clk
0:02:56.7]} 14. h3 {[%clk 0:02:24.6]} 14... Bd7 {[%clk 0:02:57.3]} 15. d5 {[%clk
0:02:17.6]} 15... c5 {[%clk 0:02:52.1]} 16. a3 {[%clk 0:02:13.8]} 16... h6
{[%clk 0:02:49.7]} 17. b4 {[%clk 0:02:12.7]} 17... b6 {[%clk 0:02:50.6]} 18. Bf1
{[%clk 0:02:08]} 18... Nh7 {[%clk 0:02:48.8]} 19. Rb1 {[%clk 0:01:52.8]} 19...
Rf8 {[%clk 0:02:48.2]} 20. Bd3 {[%clk 0:01:51.2]} 20... Qd8 {[%clk 0:02:39.8]}
21. bxc5 {[%clk 0:01:48.8]} 21... bxc5 {[%clk 0:02:40.7]} 22. Rb7 {[%clk
0:01:48.2]} 22... Bc8 {[%clk 0:02:41.3]} 23. Rb3 {[%clk 0:01:47.1]} 23... Ng5
{[%clk 0:02:41.8]} 24. Qe2 {[%clk 0:01:16.1]} 24... Bf6 {[%clk 0:02:25.4]} 25.
Rdb1 {[%clk 0:01:13.2]} 25... Nf4 {[%clk 0:02:25.6]} 26. Bxf4 {[%clk 0:01:10.3]}
26... exf4 {[%clk 0:02:26.5]} 27. Nxg5 {[%clk 0:01:08.2]} 27... hxg5 {[%clk
0:02:26.9]} 28. Na4 {[%clk 0:00:59.2]} 28... g4 {[%clk 0:02:20.9]} 29. hxg4
{[%clk 0:00:53.3]} 29... Be5 {[%clk 0:02:19.8]} 30. Nb6 {[%clk 0:00:51]} 30...
Rb8 {[%clk 0:01:48.4]} 31. Nxc8 {[%clk 0:00:50]} 31... Rxc8 {[%clk 0:01:49.3]}
32. Qf3 {[%clk 0:00:43]} 32... Qg5 {[%clk 0:01:48.8]} 33. Rb7 {[%clk 0:00:41.2]}
33... g6 {[%clk 0:01:48.9]} 34. R1b6 {[%clk 0:00:39.9]} 34... Kg7 {[%clk
0:01:43.2]} 35. Rxa6 {[%clk 0:00:37.7]} 35... Rh8 {[%clk 0:01:43.1]} 36. Raa7
{[%clk 0:00:36.5]} 36... Rcf8 {[%clk 0:01:43.4]} 37. a4 {[%clk 0:00:22.6]} 37...
Qh6 {[%clk 0:01:37.3]} 38. Qh3 {[%clk 0:00:21.5]} 38... Qg5 {[%clk 0:01:34.7]}
39. Qf3 {[%clk 0:00:21.7]} 39... Rh4 {[%clk 0:01:21.5]} 40. a5 {[%clk
0:00:19.5]} 40... Rxg4 {[%clk 0:01:17.1]} 41. a6 {[%clk 0:00:16.3]} 41... Rh4
{[%clk 0:01:13.3]} 42. Re7 {[%clk 0:00:14.1]} 42... Bf6 {[%clk 0:01:11.5]} 43.
Red7 {[%clk 0:00:13.7]} 43... Qe5 {[%clk 0:01:11.7]} 44. Bf1 {[%clk 0:00:05.7]}
44... g5 {[%clk 0:01:09.2]} 45. Qd3 {[%clk 0:00:04.1]} 45... Rfh8 {[%clk
0:01:06.9]} 46. Rxf7+ {[%clk 0:00:03.5]} 46... Kg6 {[%clk 0:01:07.6]} 47. f3
{[%clk 0:00:03.5]} 47... Qd4+ {[%clk 0:01:07.4]} 48. Qxd4 {[%clk 0:00:03.4]}
48... Bxd4# {[%clk 0:01:08.3]} 0-1